fUSD/lending_fUSD_20241203
["ID","MTS","AMOUNT","RATE_DAILY","PERIOD"]
[344017504,1733207696479,-1052.8,0.00025273,120]
[344017505,1733207696519,-1335.02,0.00025273,120]
[344017506,1733207696560,-2909.92,0.00025273,120]
[344017507,1733207696598,-500.0,0.00025273,120]
[344017508,1733207696641,-1563.38,0.00025273,120]
[344017509,1733207696682,-666.1,0.00025273,120]
[344017510,1733207696723,-1064.91,0.00025273,120]
[344017511,1733207696764,-500.0,0.00025273,120]
[344017512,1733207696805,-1336.08,0.00025273,120]
[344017513,1733207696844,-500.0,0.00025273,120]
[344017514,1733207696883,-500.0,0.00025273,120]
[344017515,1733207696924,-1053.55,0.00025273,120]
[344017516,1733207696963,-500.0,0.00025273,120]
[344017517,1733207697006,-3527.3,0.00025273,120]
[344017518,1733207697047,-641.55,0.00025273,120]
[344017519,1733207697086,-500.0,0.00025273,120]
[344017520,1733207697127,-500.0,0.00025273,120]
[344017521,1733207697168,-500.0,0.00025273,120]
[344017522,1733207697209,-632.61,0.00025273,120]
[344017523,1733207697250,-479.8798465,0.00025273,120]
[344017524,1733207697290,-500.0,0.00025273,120]
[344017525,1733207697330,-500.0,0.00025273,120]
[344017526,1733207697371,-735.68,0.00025273,120]
[344017527,1733207697411,-500.0,0.00025273,120]
[344017528,1733207697450,-1623.86,0.00025273,120]
[344017529,1733207697490,-562.2,0.00025273,120]
[344017530,1733207697533,-537.58,0.00025273,120]
[344017531,1733207697573,-500.0,0.00025273,120]
[344017532,1733207697886,-2058.88,0.00025273,120]
[344017533,1733207697928,-1354.01,0.00025273,120]
[344017534,1733207697972,-1273.98,0.00025273,120]
[344017535,1733207698013,-1598.39,0.00025273,120]
[344017536,1733207698055,-500.0,0.00025273,120]
[344017537,1733207698096,-500.0,0.00025273,120]
[344017538,1733207698138,-500.0,0.00025273,120]
[344017539,1733207698180,-646.96,0.00025273,120]
[344017540,1733207698220,-500.0,0.00025273,120]
[344017541,1733207698261,-500.0,0.00025273,120]
[344017542,1733207698303,-500.0,0.00025273,120]
[344017543,1733207698344,-500.0,0.00025273,120]
[344017544,1733207698383,-500.0,0.00025273,120]
[344017545,1733207698422,-1491.79,0.00025273,120]
[344017546,1733207698461,-500.0,0.00025273,120]
[344017547,1733207698499,-999.07,0.00025273,120]
[344017548,1733207698539,-500.0,0.00025273,120]
[344017549,1733207698579,-2472.79,0.00025273,120]
[344017550,1733207698616,-500.0,0.00025273,120]
[344017551,1733207698654,-500.0,0.00025273,120]
[344017552,1733207698692,-1541.09,0.00025273,120]
[344017553,1733207698731,-1126.05,0.00025273,120]
[344017554,1733207698768,-500.0,0.00025273,120]
[344017555,1733207698808,-500.0,0.00025273,120]
[344017556,1733207698847,-1264.84,0.00025273,120]
[344017557,1733207698883,-1015.03,0.00025273,120]
[344017558,1733207698923,-1241.64,0.00025273,120]
[344017559,1733207698962,-500.0,0.00025273,30]
[344017560,1733207699002,-1567.91,0.00025273,120]
[344017561,1733207699042,-500.0,0.00025273,120]
[344017562,1733207699081,-730.44,0.00025273,120]
[344017563,1733207699123,-2404.43,0.00025273,120]
[344017564,1733207699162,-500.0,0.00025273,120]
[344017565,1733207699202,-542.53,0.00025273,120]
[344017566,1733207699241,-1583.7,0.00025273,120]
[344017567,1733207699284,-583.44,0.00025273,120]
[344017568,1733207699325,-500.0,0.00025273,120]
[344017569,1733207699364,-1050.6,0.00025273,120]
[344017570,1733207699403,-1687.44,0.00025273,120]
[344017571,1733207699442,-500.0,0.00025273,120]
[344017572,1733207699480,-607.77,0.00025273,120]
[344017573,1733207699520,-3184.43,0.00025273,120]
[344017574,1733207699563,-500.0,0.00025273,120]
[344017575,1733207699605,-1668.92,0.00025273,120]
[344017576,1733207699646,-500.0,0.00025273,120]
[344017577,1733207699685,-2156.17,0.00025273,120]
[344017578,1733207699725,-500.0,0.00025273,120]
[344017579,1733207699763,-500.0,0.00025273,120]
[344017580,1733207699805,-500.0,0.00025273,120]
[344017581,1733207699845,-500.0,0.00025273,120]
[344017582,1733207699883,-500.0,0.00025273,120]
[344017583,1733207699922,-500.0,0.00025273,120]
[344017584,1733207699961,-1216.64,0.00025273,120]
[344017585,1733207700001,-5514.75,0.00025273,120]
[344017586,1733207700044,-818.96,0.00025273,120]
[344017587,1733207700087,-500.0,0.00025273,120]
[344017588,1733207700129,-500.0,0.00025273,120]
[344017589,1733207700171,-922.77,0.00025273,120]
[344017590,1733207700213,-500.0,0.00025273,120]
[344017591,1733207700257,-500.0,0.00025273,120]
[344017592,1733207700299,-1141.51,0.00025273,120]
[344017593,1733207700340,-649.17,0.00025273,120]
[344017594,1733207700381,-500.0,0.00025273,120]
[344017595,1733207700421,-2619.24,0.00025273,120]
[344017596,1733207700461,-500.0,0.00025273,120]
[344017597,1733207700501,-500.0,0.00025273,120]
[344017598,1733207700543,-1312.72,0.00025273,120]
[344017599,1733207700582,-898.11,0.00025273,120]
[344017600,1733207700621,-500.0,0.00025273,120]
[344017601,1733207700660,-586.27,0.00025273,120]
[344017602,1733207700700,-2976.61,0.00025273,120]
[344017603,1733207700740,-1203.53,0.00025273,120]
[344017604,1733207700780,-500.0,0.00025273,120]
[344017605,1733207700819,-778.32,0.00025273,120]
[344017606,1733207700857,-500.0,0.00025273,120]
[344017607,1733207700894,-724.32,0.00025273,120]
[344017608,1733207700930,-1010.52,0.00025273,120]
[344017609,1733207700968,-500.0,0.00025273,120]
[344017610,1733207701010,-3176.84,0.00025273,120]
[344017611,1733207701054,-500.0,0.00025273,120]
[344017612,1733207701095,-1045.4,0.00025273,120]
[344017613,1733207701135,-500.0,0.00025273,120]
[344017614,1733207701176,-500.0,0.00025273,120]
[344017615,1733207701218,-500.0,0.00025273,120]
[344017616,1733207701259,-2477.99,0.00025273,120]
[344017617,1733207701306,-617.31,0.00025273,120]
[344017618,1733207701345,-500.0,0.00025273,120]
[344017619,1733207701384,-1121.83,0.00025273,120]
[344017620,1733207701423,-3567.98,0.00025273,120]
[344017621,1733207701461,-500.0,0.00025273,120]
[344017622,1733207701501,-500.0,0.00025273,120]
[344017623,1733207701541,-500.0,0.00025273,120]
[344017624,1733207701581,-888.05,0.00025273,120]
[344017625,1733207701620,-620.97,0.00025273,120]
[344017626,1733207701885,-500.0,0.00025273,120]
[344017627,1733207701931,-1330.87,0.00025273,120]
[344017628,1733207701972,-713.37,0.00025273,120]
[344017629,1733207702013,-500.0,0.00025273,120]
[344017630,1733207702056,-1744.69,0.00025273,120]
[344017631,1733207702095,-286.28256,0.00025273,120]
[344017632,1733207702136,-1081.89,0.00025273,120]
[344017633,1733207702176,-500.0,0.00025273,120]
[344017634,1733207702215,-500.0,0.00025273,120]
[344017635,1733207702254,-1954.67,0.00025273,120]
[344017636,1733207702294,-3036.32,0.00025273,120]
[344017637,1733207702333,-500.0,0.00025273,120]
[344017638,1733207702374,-3528.08,0.00025273,120]
[344017639,1733207702412,-2404.8,0.00025273,120]
[344017640,1733207702451,-617.80245314,0.00025273,120]
[344017641,1733207702490,-2304.77,0.00025273,120]
[344017642,1733207702529,-702.23,0.00025273,120]
[344017643,1733207702568,-500.0,0.00025273,120]
[344017644,1733207702608,-2327.37,0.00025273,120]
[344017645,1733207702649,-500.0,0.00025273,120]
[344017646,1733207702689,-2722.82,0.00025273,120]
[344017647,1733207702728,-500.0,0.00025273,120]
[344017648,1733207702766,-500.0,0.00025273,120]
[344017649,1733207702807,-500.0,0.00025273,120]
[344017650,1733207702846,-1564.56,0.00025273,120]
[344017651,1733207702886,-1054.65,0.00025273,120]
[344017652,1733207702925,-500.0,0.00025273,120]
[344017653,1733207702965,-1449.45,0.00025273,120]
[344017654,1733207703004,-500.0,0.00025273,120]
[344017655,1733207703063,-1308.0,0.00025273,120]
[344017656,1733207703106,-500.0,0.00025273,120]
[344017657,1733207703150,-500.0,0.00025273,120]
[344017658,1733207703194,-1628.7,0.00025273,120]
[344017659,1733207703238,-1224.72,0.00025273,120]
[344017660,1733207703285,-554.1,0.00025273,120]
[344017661,1733207703329,-1100.11,0.00025273,120]
[344017662,1733207703374,-500.0,0.00025273,120]
[344017663,1733207703417,-1925.87,0.00025273,120]
[344017664,1733207703460,-2646.13,0.00025273,120]
[344017665,1733207703505,-938.72,0.00025273,120]
[344017666,1733207703550,-500.0,0.00025273,120]
[344017667,1733207703595,-500.0,0.00025273,120]
[344017668,1733207703643,-500.0,0.00025273,120]
[344017669,1733207703684,-500.0,0.00025273,120]
[344017670,1733207703727,-500.0,0.00025273,120]
[344017671,1733207703769,-1666.49,0.00025273,120]
[344017672,1733207703815,-2395.28,0.00025273,120]
[344017673,1733207703857,-500.0,0.00025273,120]
[344017674,1733207703899,-500.0,0.00025273,120]
[344017675,1733207703941,-500.0,0.00025273,120]
[344017676,1733207703984,-500.0,0.00025273,120]
[344017677,1733207704028,-2448.81,0.00025273,120]
[344017678,1733207704073,-1094.16,0.00025273,120]
[344017679,1733207704116,-729.66,0.00025273,120]
[344017680,1733207704158,-500.0,0.00025273,120]
[344017681,1733207704202,-627.37,0.00025273,120]
[344017682,1733207704247,-500.0,0.00025273,120]
[344017683,1733207704291,-500.0,0.00025273,120]
[344017684,1733207704334,-500.0,0.00025273,120]
[344017685,1733207704381,-1286.27,0.00025273,120]
[344017686,1733207704425,-1392.32,0.00025273,120]
[344017687,1733207704467,-4724.77,0.00025273,120]
[344017688,1733207704509,-500.0,0.00025273,120]
[344017689,1733207704552,-2807.85,0.00025273,120]
[344017690,1733207704594,-987.23,0.00025273,120]
[344017691,1733207704639,-1235.76,0.00025273,120]
[344017692,1733207704683,-5736.65,0.00025273,120]
[344017693,1733207704728,-500.0,0.00025273,120]
[344017694,1733207704772,-500.0,0.00025273,120]
[344017695,1733207704836,-2146.22,0.00025273,120]
[344017696,1733207704883,-1213.42,0.00025273,120]
[344017697,1733207704928,-500.0,0.00025273,120]
[344017698,1733207704974,-1070.22,0.00025273,120]
[344017699,1733207705020,-975.31,0.00025273,120]
[344017700,1733207705068,-500.0,0.00025273,120]
[344017701,1733207705113,-1963.0,0.00025273,120]
[344017702,1733207705156,-156.11816701,0.00025273,120]
[344017703,1733207705202,-500.0,0.00025273,120]
[344017704,1733207705245,-395.6267283,0.00025273,120]
[344017705,1733207705289,-500.0,0.00025273,120]
[344017706,1733207705337,-865.32,0.00025273,120]
[344017707,1733207705382,-500.0,0.00025273,120]
[344017708,1733207705430,-500.0,0.00025273,120]
[344017709,1733207705474,-3268.83,0.00025273,120]
[344017710,1733207705518,-500.0,0.00025273,120]
[344017711,1733207705563,-500.0,0.00025273,120]
[344017712,1733207705609,-500.0,0.00025273,30]
[344017713,1733207705652,-1191.02,0.00025273,120]
[344017714,1733207705702,-500.0,0.00025273,120]
[344017715,1733207705745,-500.0,0.00025273,120]
[344017716,1733207705790,-500.0,0.00025273,120]
[344017717,1733207705834,-772.41,0.00025273,120]
[344017718,1733207705877,-500.0,0.00025273,120]
[344017719,1733207705920,-1636.46,0.00025273,120]
[344017720,1733207705966,-2019.59,0.00025273,120]
[344017721,1733207706400,-500.0,0.00025273,120]
[344017722,1733207706441,-873.59,0.00025273,120]
[344017723,1733207706481,-500.0,0.00025273,120]
[344017724,1733207706522,-776.79,0.00025273,120]
[344017725,1733207706563,-500.0,0.00025273,120]
[344017726,1733207706607,-848.08,0.00025273,120]
[344017727,1733207706647,-1131.48,0.00025273,120]
[344017728,1733207706691,-500.0,0.00025273,30]
[344017729,1733207706730,-500.0,0.00025273,120]
[344017730,1733207706770,-500.0,0.00025273,120]
[344017731,1733207706810,-500.0,0.00025273,120]
[344017732,1733207706851,-500.0,0.00025273,120]
[344017733,1733207706890,-1367.48,0.00025273,120]
[344017734,1733207706933,-500.0,0.00025273,120]
[344017735,1733207706973,-500.0,0.00025273,120]
[344017736,1733207707017,-1665.85,0.00025273,120]
[344017737,1733207707060,-500.0,0.00025273,120]
[344017738,1733207707101,-500.0,0.00025273,120]
[344017739,1733207707143,-1162.6,0.00025273,120]
[344017740,1733207707186,-2671.0,0.00025273,120]
[344017741,1733207707227,-500.0,0.00025273,120]
[344017742,1733207707267,-1012.34,0.00025273,120]
[344017743,1733207707310,-500.0,0.00025273,120]
[344017744,1733207707351,-500.0,0.00025273,120]
[344017745,1733207707392,-1598.2,0.00025273,120]
[344017746,1733207707433,-661.44,0.00025273,120]
[344017747,1733207707472,-903.89,0.00025273,120]
[344017748,1733207707513,-1322.29,0.00025273,120]
[344017749,1733207707553,-500.0,0.00025273,120]
[344017750,1733207707595,-741.56,0.00025273,120]
[344017751,1733207707639,-1794.63,0.00025273,120]
[344017752,1733207707685,-500.0,0.00025273,120]
[344017753,1733207707727,-500.0,0.00025273,120]
[344017754,1733207707768,-1064.47,0.00025273,120]
[344017755,1733207707813,-500.0,0.00025273,120]
[344017756,1733207707868,-2284.27,0.00025273,120]
[344017757,1733207707913,-686.36,0.00025273,120]
[344017758,1733207707956,-2042.65,0.00025273,120]
[344017759,1733207708000,-1560.6,0.00025273,120]
[344017760,1733207708043,-500.0,0.00025273,120]
[344017761,1733207708089,-520.38,0.00025273,120]
[344017762,1733207708133,-814.69,0.00025273,120]
[344017763,1733207708176,-500.0,0.00025273,120]
[344017764,1733207708220,-500.0,0.00025273,120]
[344017765,1733207708264,-500.0,0.00025273,120]
[344017766,1733207708310,-500.0,0.00025273,120]
[344017767,1733207708353,-500.0,0.00025273,120]
[344017768,1733207708395,-2191.61,0.00025273,120]
[344017769,1733207708435,-500.0,0.00025273,120]
[344017770,1733207708477,-1948.65,0.00025273,120]
[344017771,1733207708520,-2274.4,0.00025273,120]
[344017772,1733207708564,-500.0,0.00025273,120]
[344017773,1733207708610,-500.0,0.00025273,120]
[344017774,1733207708655,-761.67,0.00025273,120]
[344017775,1733207708706,-1145.89,0.00025273,120]
[344017776,1733207708753,-712.57,0.00025273,120]
[344017777,1733207708798,-500.0,0.00025273,120]
[344017778,1733207708843,-1353.4,0.00025273,120]
[344017779,1733207708886,-500.0,0.00025273,120]
[344017780,1733207708931,-500.0,0.00025273,120]
[344017781,1733207708973,-500.0,0.00025273,120]
[344017782,1733207709018,-1178.37,0.00025273,120]
[344017783,1733207709063,-948.42,0.00025273,120]
[344017784,1733207709108,-500.0,0.00025273,30]
[344017785,1733207709153,-500.0,0.00025273,120]
[344017786,1733207709195,-475.10480161,0.00025273,120]
[344017787,1733207709238,-608.56,0.00025273,120]
[344017788,1733207709285,-500.0,0.00025273,120]
[344017789,1733207709331,-500.0,0.00025273,120]
[344017790,1733207709376,-500.0,0.00025273,120]
[344017791,1733207709419,-500.0,0.00025273,120]
[344017792,1733207709462,-2676.88,0.00025273,120]
[344017793,1733207709506,-500.0,0.00025273,120]
[344017794,1733207709554,-500.0,0.00025273,120]
[344017795,1733207709598,-500.0,0.00025273,120]
[344017796,1733207709646,-500.0,0.00025273,120]
[344017797,1733207709692,-4563.76,0.00025273,120]
[344017798,1733207709737,-2460.71,0.00025273,120]
[344017799,1733207709781,-500.0,0.00025273,120]
[344017800,1733207709828,-1100.9,0.00025273,120]
[344017801,1733207709875,-1289.14,0.00025273,120]
[344017802,1733207709920,-500.0,0.00025273,120]
[344017803,1733207709965,-809.29,0.00025273,120]
[344017804,1733207710014,-2148.97,0.00025273,120]
[344017805,1733207710066,-500.0,0.00025273,120]
[344017806,1733207710111,-1074.51,0.00025273,120]
[344017807,1733207710154,-1666.66,0.00025273,120]
[344017808,1733207710199,-485.56035675,0.00025273,120]
[344017809,1733207710241,-500.0,0.00025273,120]
[344017810,1733207710283,-500.0,0.00025273,120]
[344017811,1733207710329,-500.0,0.00025273,120]
[344017812,1733207710373,-500.0,0.00025273,120]
[344017813,1733207710415,-1789.8,0.00025273,120]
[344017814,1733207710459,-1549.0,0.00025273,120]
[344017815,1733207710865,-1997.19,0.00025273,120]
[344017816,1733207710905,-1599.4,0.00025273,120]
[344017817,1733207710946,-500.0,0.00025273,120]
[344017818,1733207710986,-1834.07,0.00025273,120]
[344017819,1733207711028,-500.0,0.00025273,120]
[344017820,1733207711074,-1977.44,0.00025273,120]
[344017821,1733207711120,-500.0,0.00025273,120]
[344017822,1733207711164,-1831.85,0.00025273,120]
[344017823,1733207711207,-500.0,0.00025273,120]
[344017824,1733207711250,-500.0,0.00025273,120]
[344017825,1733207711293,-500.0,0.00025273,120]
[344017826,1733207711334,-393.30547634,0.00025273,120]
[344017827,1733207711375,-726.88,0.00025273,120]
[344017828,1733207711415,-500.0,0.00025273,120]
[344017829,1733207711455,-2704.12,0.00025273,120]
[344017830,1733207711498,-2087.88,0.00025273,120]
[344017831,1733207711544,-616.48,0.00025273,120]
[344017832,1733207711584,-500.0,0.00025273,120]
[344017833,1733207711626,-1672.5,0.00025273,120]
[344017834,1733207711666,-500.0,0.00025273,120]
[344017835,1733207711708,-500.0,0.00025273,120]
[344017836,1733207711750,-500.0,0.00025273,120]
[344017837,1733207711791,-995.4,0.00025273,120]
[344017838,1733207711831,-1482.88,0.00025273,120]
[344017839,1733207711868,-500.0,0.00025273,120]
[344017840,1733207711906,-500.0,0.00025273,120]
[344017841,1733207711943,-1910.11,0.00025273,120]
[344017842,1733207711979,-1665.73,0.00025273,120]
[344017843,1733207712016,-500.0,0.00025273,120]
[344017844,1733207712057,-1256.59,0.00025273,120]
[344017845,1733207712095,-1116.75,0.00025273,120]
[344017846,1733207712134,-500.0,0.00025273,120]
[344017847,1733207712174,-679.58,0.00025273,120]
[344017848,1733207712213,-500.0,0.00025273,120]
[344017849,1733207712252,-500.0,0.00025273,120]
[344017850,1733207712292,-2444.66,0.00025273,120]
[344017851,1733207712333,-500.0,0.00025273,120]
[344017852,1733207712372,-1326.19,0.00025273,120]
[344017853,1733207712411,-1383.31,0.00025273,120]
[344017854,1733207712448,-617.99736581,0.00025273,120]
[344017855,1733207712487,-500.0,0.00025273,120]
[344017856,1733207712527,-500.0,0.00025273,120]
[344017857,1733207712570,-2904.45,0.00025273,120]
[344017858,1733207712611,-1563.05,0.00025273,120]
[344017859,1733207712651,-560.72,0.00025273,120]
[344017860,1733207712696,-586.83,0.00025273,120]
[344017861,1733207712736,-2370.14,0.00025273,120]
[344017862,1733207712776,-1139.73,0.00025273,120]
[344017863,1733207712815,-500.0,0.00025273,120]
[344017864,1733207712852,-794.0,0.00025273,120]
[344017865,1733207712890,-1426.14,0.00025273,120]
[344017866,1733207712928,-2640.71,0.00025273,120]
[344017867,1733207712967,-500.0,0.00025273,120]
[344017868,1733207713006,-500.0,0.00025273,120]
[344017869,1733207713046,-500.0,0.00025273,120]
[344017870,1733207713086,-2170.39,0.00025273,120]
[344017871,1733207713126,-500.0,0.00025273,120]
[344017872,1733207713168,-500.0,0.00025273,120]
[344017873,1733207713209,-1034.19,0.00025273,120]
[344017874,1733207713250,-500.0,0.00025273,120]
[344017875,1733207713290,-596.36,0.00025273,120]
[344017876,1733207713329,-500.0,0.00025273,120]
[344017877,1733207713368,-1459.58,0.00025273,120]
[344017878,1733207713408,-1136.49,0.00025273,120]
[344017879,1733207713449,-3893.47,0.00025273,120]
[344017880,1733207713489,-2324.37,0.00025273,120]
[344017881,1733207713530,-500.0,0.00025273,120]
[344017882,1733207713573,-1362.42,0.00025273,120]
[344017883,1733207713617,-1182.46,0.00025273,120]
[344017884,1733207713657,-1496.88,0.00025273,120]
[344017885,1733207713696,-500.0,0.00025273,120]
[344017886,1733207713735,-500.0,0.00025273,120]
[344017887,1733207713774,-1142.41,0.00025273,120]
[344017888,1733207713816,-1452.92,0.00025273,120]
[344017889,1733207713854,-500.0,0.00025273,120]
[344017890,1733207713891,-500.0,0.00025273,120]
[344017891,1733207713930,-500.0,0.00025273,120]
[344017892,1733207713968,-746.56,0.00025273,120]
[344017893,1733207714010,-500.0,0.00025273,120]
[344017894,1733207714052,-627.97,0.00025273,120]
[344017895,1733207714096,-500.0,0.00025273,120]
[344017896,1733207714138,-500.0,0.00025273,120]
[344017897,1733207714180,-1032.21,0.00025273,120]
[344017898,1733207714221,-2780.47,0.00025273,120]
[344017899,1733207714261,-1303.12,0.00025273,120]
[344017900,1733207714300,-500.0,0.00025273,120]
[344017901,1733207714338,-560.79,0.00025273,120]
[344017902,1733207714377,-514.48,0.00025273,120]
[344017903,1733207714415,-500.0,0.00025273,120]
[344017904,1733207714455,-500.0,0.00025273,120]
[344017905,1733207714495,-1584.5,0.00025273,120]
[344017906,1733207714537,-507.99,0.00025273,120]
[344017907,1733207714577,-500.0,0.00025273,120]
[344017908,1733207714616,-1817.08,0.00025273,120]
[344017909,1733207714935,-2791.19,0.00025273,120]
[344017910,1733207714976,-923.51,0.00025273,120]
[344017911,1733207715018,-500.0,0.00025273,120]
[344017912,1733207715066,-500.0,0.00025273,120]
[344017913,1733207715111,-1589.09,0.00025273,120]
[344017914,1733207715152,-604.61,0.00025273,120]
[344017915,1733207715196,-1406.79,0.00025273,120]
[344017916,1733207715237,-2372.69,0.00025273,120]
[344017917,1733207715280,-500.0,0.00025273,120]
[344017918,1733207715323,-500.0,0.00025273,120]
[344017919,1733207715362,-800.1,0.00025273,120]
[344017920,1733207715407,-500.0,0.00025273,120]
[344017921,1733207715447,-500.0,0.00025273,120]
[344017922,1733207715494,-500.0,0.00025273,120]
[344017923,1733207715538,-1179.83,0.00025273,120]
[344017924,1733207715580,-2059.46,0.00025273,120]
[344017925,1733207715623,-1100.48,0.00025273,120]
[344017926,1733207715663,-500.0,0.00025273,120]
[344017927,1733207715706,-1705.31,0.00025273,120]
[344017928,1733207715746,-500.0,0.00025273,120]
[344017929,1733207715792,-1340.78,0.00025273,120]
[344017930,1733207715832,-3593.83,0.00025273,120]
[344017931,1733207715874,-500.0,0.00025273,90]
[344017932,1733207715915,-500.0,0.00025273,120]
[344017933,1733207715956,-10727.24,0.00025273,120]
[344017934,1733207715999,-1865.32,0.00025273,120]
[344017935,1733207716047,-1602.81,0.00025273,120]
[344017936,1733207716091,-3121.43,0.00025273,120]
[344017937,1733207716133,-500.0,0.00025273,120]
[344017938,1733207716175,-500.0,0.00025273,120]
[344017939,1733207716217,-1959.29,0.00025273,120]
[344017940,1733207716259,-500.0,0.00025273,120]
[344017941,1733207716300,-1293.06,0.00025273,120]
[344017942,1733207716342,-586.15,0.00025273,120]
[344017943,1733207716386,-511.79003841,0.00025273,120]
[344017944,1733207716430,-4510.57,0.00025273,120]
[344017945,1733207716476,-500.0,0.00025273,120]
[344017946,1733207716520,-500.0,0.00025273,120]
[344017947,1733207716564,-500.0,0.00025273,120]
[344017948,1733207716607,-3329.44,0.00025273,120]
[344017949,1733207716649,-500.0,0.00025273,120]
[344017950,1733207716691,-500.0,0.00025273,120]
[344017951,1733207716731,-667.71,0.00025273,120]
[344017952,1733207716769,-500.0,0.00025273,120]
[344017953,1733207716807,-500.0,0.00025273,120]
[344017954,1733207716845,-4440.24,0.00025273,120]
[344017955,1733207716884,-2513.82,0.00025273,120]
[344017956,1733207716923,-2683.85,0.00025273,120]
[344017957,1733207716962,-500.0,0.00025273,120]
[344017958,1733207717003,-500.0,0.00025273,120]
[344017959,1733207717045,-1915.95,0.00025273,120]
[344017960,1733207717086,-500.0,0.00025273,120]
[344017961,1733207717136,-500.0,0.00025273,120]
[344017962,1733207717180,-613.46,0.00025273,120]
[344017963,1733207717230,-2441.41,0.00025273,120]
[344017964,1733207717272,-365.39703718,0.00025273,120]
[344017965,1733207717315,-500.0,0.00025273,120]
[344017966,1733207717355,-1510.91,0.00025273,120]
[344017967,1733207717394,-500.0,0.00025273,120]
[344017968,1733207717433,-1051.34,0.00025273,120]
[344017969,1733207717471,-692.33,0.00025273,120]
[344017970,1733207717509,-583.43734598,0.00025273,120]
[344017971,1733207717549,-1435.75,0.00025273,120]
[344017972,1733207717587,-9685.17,0.00025273,120]
[344017973,1733207717628,-2029.83,0.00025273,120]
[344017974,1733207717667,-150.0,0.00025273,120]
[344017975,1733207717704,-500.0,0.00025273,120]
[344017976,1733207717742,-2012.89,0.00025273,120]
[344017977,1733207717779,-2463.39,0.00025273,120]
[344017978,1733207717823,-1335.54,0.00025273,120]
[344017979,1733207717861,-658.32,0.00025273,120]
[344017980,1733207717900,-500.0,0.00025273,120]
[344017981,1733207717938,-2440.07,0.00025273,120]
[344017982,1733207717977,-546.66,0.00025273,120]
[344017983,1733207718017,-5326.64,0.00025273,120]
[344017984,1733207718059,-500.0,0.00025273,120]
[344017985,1733207718101,-500.0,0.00025273,120]
[344017986,1733207718142,-500.0,0.00025273,120]
[344017987,1733207718182,-543.2,0.00025273,120]
[344017988,1733207718223,-602.36,0.00025273,120]
[344017989,1733207718264,-6535.24,0.00025273,120]
[344017990,1733207718305,-1869.28,0.00025273,120]
[344017991,1733207718348,-611.15,0.00025273,120]
[344017992,1733207718390,-1614.56,0.00025273,120]
[344017993,1733207718431,-500.0,0.00025273,120]
[344017994,1733207718471,-500.0,0.00025273,120]
[344017995,1733207718515,-500.0,0.00025273,120]
[344017996,1733207718558,-500.0,0.00025273,120]
[344017997,1733207718600,-500.0,0.00025273,120]
[344017998,1733207718645,-3283.0,0.00025273,120]
[344017999,1733207718685,-500.0,0.00025273,120]
[344018000,1733207718727,-500.0,0.00025273,120]
[344018001,1733207718768,-542.49,0.00025273,120]
[344018002,1733207718808,-500.0,0.00025273,120]
[344018003,1733207718848,-1533.35,0.00025273,120]